bitfinex/quotes_ETHUSD_20240722
["timestamp","ask_amount","ask_price","bid_price","bid_amount"]
[1721614678794,4.574702,3527.4,3527.2,0.06170399]
[1721614678961,4.574702,3527.4,3526.8,2.83542]
[1721614679159,4.574702,3527.4,3527.3,0.06169935]
[1721614679398,3.0,3527.4,3527.3,0.06169935]
[1721614679603,2.83424,3528.3,3527.3,0.06169935]
[1721614679604,22.2657,3528.4,3527.3,2.83497]
[1721614679900,22.2657,3528.4,3527.8,2.83456]
[1721614680259,22.2657,3528.4,3527.9,0.06171512]
[1721614680473,2.3757,3528.4,3527.9,0.06171512]
[1721614680660,0.520969,3528.3,3527.8,2.83456]
[1721614680860,0.520969,3528.3,3528.0,0.06171049]
[1721614681178,0.520969,3528.3,3527.9,0.06171512]
[1721614681361,0.5018586,3528.3,3528.1,0.06170585]
[1721614681564,0.5018586,3528.3,3527.1,2.83513]
[1721614681565,2.83456,3527.9,3527.1,2.83515]
[1721614681763,2.87517323,3528.0,3526.7,2.3387]
[1721614681983,0.04070323,3528.0,3527.4,2.83494]
[1721614682186,0.04070323,3528.0,3526.7,2.3387]
[1721614682187,2.3339,3528.1,3527.5,2.83486]
[1721614682741,5.16828,3528.1,3527.3,2.83498]
[1721614682895,5.20898323,3528.1,3527.3,2.83498]
[1721614684133,5.20898323,3528.1,3527.1,2.83516]
[1721614684134,2.83462,3527.8,3527.1,2.83516]
[1721614684428,0.56162555,3527.8,3527.2,2.83509]
[1721614685228,0.52092232,3527.8,3527.2,2.83509]
[1721614685712,0.52092232,3527.8,3526.9,2.83534]
[1721614686511,3.35555232,3527.8,3527.1,2.83512]
[1721614686823,0.52092232,3527.8,3526.9,2.83534]
[1721614686987,5.20899323,3528.1,3526.9,2.83534]
[1721614686988,5.20899323,3528.1,3527.2,2.83509]
[1721614687188,5.16829,3528.1,3527.2,2.83509]
[1721614687417,5.16829,3528.1,3527.3,2.83501]
[1721614687582,5.20899323,3528.1,3527.3,2.83501]
[1721614687999,5.16829,3528.1,3527.3,2.83501]
[1721614688211,1.64288935,3528.0,3527.3,2.83501]
[1721614688396,4.47736935,3528.0,3527.3,2.83501]
[1721614688904,1.64288935,3528.0,3527.4,2.83492]
[1721614689101,2.3339,3528.1,3527.4,2.83491]
[1721614689415,2.83446,3528.0,3527.2,2.83507]
[1721614689599,2.83446,3528.0,3527.3,2.83502]
[1721614689797,2.3339,3528.1,3527.3,2.83495]
[1721614690001,3.46899899,3528.1,3527.4,0.06168848]
[1721614690324,6.30338899,3528.1,3527.4,0.06168848]
[1721614690635,6.30338899,3528.1,3527.4,2.89660848]
[1721614690812,6.30338899,3528.1,3527.4,2.83492]
[1721614691008,2.83447,3528.0,3527.2,2.83506]
[1721614691199,3.46183279,3528.0,3527.2,2.83506]
[1721614691922,5.0972,3527.9,3527.2,2.83506]
[1721614692137,0.04070323,3527.8,3527.2,2.83506]
[1721614692294,0.04070323,3527.8,3527.3,0.06164952]
[1721614692792,2.2626,3527.9,3527.3,2.83501]
[1721614692988,2.2626,3527.9,3527.1,2.83517]
[1721614693331,2.2626,3527.9,3527.5,2.83484]
[1721614695127,2.2626,3527.9,3527.3,2.83498]
[1721614695428,2.30330323,3527.9,3527.3,2.83498]
[1721614695602,2.30330323,3527.9,3527.4,0.06163399]
[1721614695803,2.30330323,3527.9,3527.3,2.83498]
[1721614696122,2.30330323,3527.9,3527.4,0.06163399]
[1721614696629,2.30330323,3527.9,3527.3,2.83498]
[1721614697122,2.2626,3527.9,3527.4,0.06163243]
[1721614697333,2.2626,3527.9,3527.4,2.89657243]
[1721614697537,2.2626,3527.9,3527.4,2.83494]
[1721614698944,2.2626,3527.9,3527.1,0.283517]
[1721614699150,0.5907164,3528.0,3527.1,2.774317]
[1721614699450,0.5907164,3528.0,3527.9,2.83454]
[1721614699827,0.5907164,3528.0,3527.9,2.89612122]
[1721614702145,0.44451485,3528.3,3528.0,2.83446]
[1721614702455,2.443,3528.2,3528.1,0.06157195]
[1721614702657,2.443,3528.2,3527.8,2.83456]
[1721614702864,2.443,3528.2,3527.9,2.83454]
[1721614703564,2.443,3528.2,3528.0,0.0614443]
[1721614704965,2.443,3528.2,3527.9,2.83454]
[1721614705666,2.443,3528.2,3527.7,2.83463]
[1721614705873,2.443,3528.2,3527.8,0.06146914]
[1721614707246,3.03407904,3528.2,3527.8,0.06146914]
[1721614707586,3.03407904,3528.2,3527.6,2.83478]
[1721614707587,2.443,3528.2,3527.6,2.83478]
[1721614707736,2.443,3528.2,3527.7,2.83468]
[1721614707930,2.443,3528.2,3527.7,2.89615377]
[1721614709355,3.03407904,3528.2,3527.7,2.89615377]
[1721614709891,2.443,3528.2,3527.7,2.89615377]
[1721614710170,3.03407904,3528.2,3527.7,2.89615377]
[1721614710377,5.86837904,3528.2,3527.7,0.06147377]
[1721614710538,3.46619227,3528.1,3527.7,0.06147377]
[1721614710872,3.46619227,3528.1,3527.3,2.83502]
[1721614710873,3.42563904,3527.9,3527.3,2.83502]
[1721614711045,3.42563904,3527.9,3527.4,0.06148769]
[1721614711255,0.59107904,3527.8,3527.4,2.89642769]
[1721614711572,0.59107904,3527.9,3527.4,2.89642769]
[1721614712788,0.59107904,3527.9,3527.7,2.83469]
[1721614712967,0.59107904,3528.1,3527.7,2.83469]
[1721614713308,0.59107904,3528.1,3527.8,0.06146914]
[1721614713483,0.88661856,3528.2,3527.8,0.06146914]
[1721614713484,2.99368227,3528.0,3527.8,0.06146914]
[1721614713802,2.99368227,3528.0,3527.2,2.83509]
[1721614713803,0.59107904,3527.9,3527.2,2.83509]
[1721614714105,3.42567904,3527.9,3527.3,0.06149233]
[1721614714318,0.59107904,3527.8,3527.3,0.06149233]
[1721614714482,3.46638227,3527.9,3527.3,0.06149233]
[1721614715233,0.59107904,3527.7,3527.3,0.06149233]
[1721614715445,2.87549323,3527.6,3527.0,2.83519]
[1721614715578,2.83479,3527.6,3527.0,2.83519]
[1721614715782,2.83479,3527.6,3527.1,0.06160744]
[1721614715783,3.42586904,3527.6,3527.1,0.06160744]
[1721614716009,0.59107904,3527.6,3527.1,0.06160744]
[1721614716420,0.59107904,3527.7,3527.1,0.06160744]
[1721614716823,0.59107904,3527.7,3527.1,2.83517]
[1721614717196,0.59107904,3527.7,3527.2,0.06161215]
[1721614717506,0.59107904,3527.7,3527.1,2.83517]
[1721614717917,0.59107904,3527.7,3527.2,0.06161215]
[1721614718326,0.59107904,3527.7,3527.1,2.83517]
[1721614718813,0.59107904,3527.7,3527.2,2.89671215]
[1721614719005,0.59107904,3527.7,3527.3,2.83501]
[1721614719405,0.59107904,3527.6,3527.4,0.06160442]
[1721614720145,0.59107904,3527.6,3527.5,2.83486]
[1721614720348,11.02405809,3528.0,3527.5,2.89645667]
[1721614720349,0.59107904,3527.7,3527.5,2.89645667]
[1721614720500,11.02405809,3528.0,3527.5,2.89645667]
[1721614720501,0.59107904,3527.8,3527.5,2.89645667]
[1721614724653,0.59107904,3527.8,3527.6,2.83477]
[1721614725042,0.59107904,3527.9,3527.7,0.0611874]
[1721614725208,0.59107904,3528.0,3527.7,0.0611874]
[1721614725408,0.59107904,3528.0,3527.6,2.83477]
[1721614725623,0.59107904,3528.0,3527.8,0.06118276]
[1721614725848,0.59107904,3528.0,3527.6,2.83477]
[1721614725849,0.59107904,3528.0,3527.7,0.0611874]
[1721614726006,0.59107904,3528.0,3527.6,2.83477]
[1721614726207,0.59107904,3528.0,3527.2,2.3031]
[1721614726208,5.77315904,3527.9,3527.8,0.06118276]
[1721614726454,3.38176696,3527.9,3527.7,0.0611656]
[1721614726604,0.88648863,3527.8,3527.2,2.83509]
[1721614726938,0.59099176,3527.6,3527.3,0.06116858]
[1721614727240,0.59099176,3527.6,3527.0,2.83525]
[1721614727445,0.59099176,3527.6,3527.0,3.51407494]
[1721614727866,0.59099176,3527.6,3527.1,0.06117786]
[1721614728288,0.59099176,3527.6,3527.1,2.89634786]
[1721614729482,0.59099176,3527.6,3527.1,0.06117786]
[1721614729633,0.59099176,3527.6,3527.1,2.89635786]
[1721614731371,0.59099176,3527.6,3527.1,3.78484014]
[1721614731967,0.59099176,3527.6,3527.3,2.83501]
[1721614732170,0.59099176,3527.6,3527.1,3.78479014]
[1721614732360,0.59099176,3527.6,3527.4,0.06116394]
[1721614732536,0.59099176,3527.6,3527.2,2.83508]
[1721614732739,0.59099176,3527.6,3527.5,0.06115931]
[1721614732978,0.59099176,3527.6,3527.2,2.83508]
[1721614733438,0.59099176,3527.6,3527.3,0.06116858]
[1721614733933,0.59099176,3527.7,3527.4,2.83494]
[1721614734131,0.59099176,3527.7,3527.3,0.06116858]
[1721614734435,0.59099176,3527.7,3527.4,0.06116394]
[1721614736267,0.59099176,3527.7,3527.4,2.89609394]
[1721614736777,0.59099176,3527.7,3527.4,0.06116394]
[1721614737179,0.88648863,3527.8,3527.2,2.83506]
[1721614737180,0.59099176,3527.6,3527.2,2.83506]
[1721614737387,0.59099176,3527.6,3527.5,0.06115931]
[1721614737543,0.59099176,3527.6,3527.2,2.83506]
[1721614737739,0.59099176,3527.6,3527.5,0.06115931]
[1721614737944,0.59099176,3527.6,3527.2,2.83506]
[1721614738156,0.59099176,3527.6,3527.5,0.06115931]
[1721614738358,0.59099176,3527.6,3527.2,2.83506]
[1721614738559,0.59099176,3527.6,3527.5,0.06116397]
[1721614738889,0.59099176,3527.6,3527.2,2.83506]
[1721614739181,0.59099176,3527.6,3526.7,1.043]
[1721614739182,0.59099176,3527.6,3527.0,2.83522]
[1721614739476,3.72125863,3527.7,3527.0,2.83522]
[1721614739477,0.59099176,3527.5,3527.0,2.83522]
[1721614739677,0.59099176,3527.5,3527.1,2.83515]
[1721614739890,0.59099176,3527.5,3527.1,2.89633252]
[1721614740869,0.59099176,3527.5,3527.2,2.83509]
[1721614741079,0.59099176,3527.6,3527.3,0.06117325]
[1721614741486,0.59099176,3527.7,3527.5,2.83486]
[1721614741641,0.59099176,3527.8,3527.6,0.06116245]
[1721614742043,0.59099176,3527.7,3527.6,0.06116245]
[1721614742445,0.59099176,3527.8,3527.6,2.89594245]
[1721614742854,0.59099176,3527.9,3527.6,2.89594245]
[1721614743551,0.59099176,3527.9,3527.6,0.06116245]
[1721614743954,0.59099176,3527.9,3527.3,5.1322]
[1721614744153,0.59099176,3527.9,3527.7,0.06115781]
[1721614744392,0.59099176,3527.9,3527.5,2.8348]
[1721614744553,0.59099176,3527.9,3527.8,0.06115317]
[1721614744753,0.59099176,3527.9,3527.5,2.8348]
[1721614744966,0.59099176,3527.9,3527.8,0.06115317]
[1721614745301,0.88648863,3528.0,3527.3,2.835]
[1721614745464,0.88648863,3528.0,3527.8,0.06115317]
[1721614745654,1.87493862,3528.0,3527.3,2.835]
[1721614745952,1.18215809,3528.1,3527.4,0.06117172]
[1721614745953,0.59093223,3527.7,3527.4,0.06117172]
[1721614747672,0.59093223,3527.7,3527.3,2.835]
[1721614747891,0.59093223,3527.6,3527.3,2.835]
[1721614748101,0.59093223,3527.6,3527.4,0.06115304]
[1721614749796,0.59093223,3527.6,3527.5,2.83486]
[1721614750086,0.88648863,3527.8,3527.5,3.1244613]
[1721614750087,0.59093223,3527.8,3527.5,3.1244613]
[1721614750302,0.59093223,3527.7,3527.5,3.18560038]
[1721614751173,0.59093223,3527.7,3527.6,2.83478]
[1721614751486,0.59093223,3527.9,3527.7,2.8347]
[1721614751661,0.59093223,3527.9,3527.8,2.89573428]
[1721614751870,0.59093223,3528.1,3527.8,2.32141428]
[1721614752066,0.59093223,3528.1,3527.9,0.59856743]
[1721614752505,0.59093223,3528.1,3528.0,0.06108321]
[1721614752671,0.59093223,3528.1,3527.7,2.8347]
[1721614752909,0.59093223,3528.1,3527.8,0.06109249]
[1721614753205,0.59093223,3528.0,3527.8,0.06109249]
[1721614753407,0.59093223,3528.1,3527.8,0.06109249]
[1721614753806,0.59093223,3528.1,3527.7,2.8347]
[1721614754221,0.59093223,3528.1,3527.8,0.06107537]
[1721614754222,0.59093223,3527.9,3527.8,0.06107537]
[1721614754431,3.33078863,3528.0,3527.8,0.06107537]
[1721614754633,0.88648863,3527.9,3527.4,2.83487]
[1721614754936,0.59131682,3527.8,3527.5,0.06108928]
[1721614755238,3.33078863,3528.0,3527.5,0.06108928]
[1721614755239,0.59131682,3527.9,3527.5,0.06108928]
[1721614755437,0.59131682,3527.9,3527.5,3.28981521]
[1721614755597,0.59131682,3528.0,3527.7,2.83463]
[1721614755797,0.59131682,3528.0,3527.5,2.89591928]
[1721614755798,0.59131682,3527.9,3527.5,2.89591928]
[1721614756031,0.59132194,3527.9,3527.8,0.06107537]
[1721614756330,0.88648863,3528.0,3527.8,0.06107537]
[1721614756550,0.88648863,3528.0,3527.6,2.83477]
[1721614756837,0.88648863,3528.0,3527.9,0.06107073]
[1721614757131,0.88648863,3528.1,3527.9,0.06107073]
[1721614757337,0.88648863,3528.1,3527.6,2.83477]
[1721614757519,0.59135439,3527.9,3527.6,2.83477]
[1721614758115,0.59135439,3527.9,3527.7,2.83469]
[1721614758628,0.59135439,3527.9,3527.5,2.83482]
[1721614758847,0.59135439,3527.8,3527.5,2.83482]
[1721614759165,0.59135439,3527.8,3527.3,2.83498]
[1721614759456,0.59135439,3527.7,3527.3,2.83498]
[1721614759657,3.00705439,3527.8,3527.4,2.83493]
[1721614760152,3.00705439,3527.8,3527.1,5.22438]
[1721614760153,0.59135439,3527.7,3527.2,2.83506]
[1721614760348,0.59135439,3527.7,3527.3,2.83501]
[1721614760554,0.59135439,3527.7,3527.4,2.83488]
[1721614760741,0.59135439,3527.8,3527.5,2.83486]
[1721614760942,0.88648863,3528.0,3527.7,2.8347]
[1721614760943,0.59135439,3527.9,3527.7,2.8347]
[1721614761120,0.59135439,3527.9,3527.8,2.83462]
[1721614761321,0.59135439,3528.1,3527.8,2.83462]
[1721614761722,7.48,3528.2,3527.6,2.83478]
[1721614761723,0.59135439,3528.0,3527.6,2.83478]
[1721614761942,0.59135439,3528.1,3527.6,2.83478]
[1721614762144,0.59135439,3528.1,3527.7,2.83469]
[1721614762354,0.59135439,3528.1,3527.6,0.9638406]
[1721614762355,0.59135439,3528.1,3527.8,2.83461]
[1721614763236,0.59135439,3528.1,3527.7,2.83467]
[1721614763449,0.59135439,3528.1,3528.0,2.83446]
[1721614764063,0.59135439,3528.1,3528.0,0.06101006]
[1721614764436,0.59135439,3528.1,3527.9,2.83452]
[1721614764773,0.59135439,3528.1,3528.0,0.06101006]
[1721614766444,2.4499,3528.5,3528.0,2.89547006]
[1721614767167,2.4499,3528.5,3528.0,0.06101006]
[1721614767568,2.4499,3528.5,3527.9,2.83453]
[1721614767752,2.4499,3528.5,3528.1,0.06100542]
[1721614767961,2.4499,3528.5,3528.0,0.06101006]
[1721614768144,2.4499,3528.5,3528.2,0.06100079]
[1721614768475,2.4499,3528.5,3528.1,0.06100542]
[1721614768675,2.4499,3528.5,3528.3,0.06099615]
[1721614768882,2.4499,3528.5,3528.2,0.06100079]
[1721614769075,2.4499,3528.5,3528.0,2.83446]
[1721614769276,2.4499,3528.5,3528.3,0.06099615]
[1721614769578,2.4499,3528.5,3528.0,2.83446]
[1721614769982,2.4499,3528.5,3528.1,0.06100542]
[1721614770383,2.4499,3528.5,3528.2,2.83427]
[1721614770570,2.4499,3528.5,3528.2,2.89527079]
[1721614771780,2.3074,3528.8,3528.3,2.83422]
[1721614771950,2.3074,3528.8,3528.2,0.06100079]
[1721614771951,2.3074,3528.8,3528.4,2.83412]
[1721614772151,0.29619403,3528.9,3528.7,2.83384]
[1721614772346,0.29619403,3528.9,3528.5,2.83403]
[1721614772347,0.29619403,3528.9,3528.8,5.66764]
[1721614772553,0.29619403,3528.9,3528.8,5.72861298]
[1721614772771,9.7354,3529.5,3529.1,2.83358]
[1721614772985,2.2554,3529.5,3529.1,2.83358]
[1721614773261,2.2554,3529.5,3529.2,0.06095444]
[1721614773697,2.2554,3529.5,3528.9,2.83369]
[1721614773998,2.2554,3529.5,3529.0,0.06068988]
[1721614774588,2.2554,3529.5,3529.0,2.89433988]
[1721614774759,2.2554,3529.5,3529.0,0.06068988]
[1721614775172,2.2554,3529.5,3528.8,2.83382]
[1721614775491,2.2554,3529.5,3529.1,0.06065258]
[1721614775794,2.2554,3529.5,3528.8,3.504899]
[1721614775795,2.2554,3529.5,3529.2,0.06064795]
[1721614776196,2.2554,3529.5,3528.8,2.83382]
[1721614776360,2.2554,3529.5,3529.3,0.06064332]
[1721614776560,2.2554,3529.5,3528.8,2.83382]
[1721614776973,2.2554,3529.5,3528.9,0.06066341]
[1721614781610,5.08866,3529.5,3528.9,0.06066341]
[1721614781822,0.04070323,3529.4,3528.9,0.06066341]
[1721614781968,2.2554,3529.5,3528.5,2.83405]
[1721614781969,2.83351,3529.2,3528.5,2.83405]
[1721614782175,2.83351,3529.2,3529.0,0.06065877]
[1721614782386,2.83351,3529.2,3528.6,2.83397]
[1721614782947,2.4854,3529.0,3528.7,0.06067268]
[1721614783403,2.4854,3529.0,3528.4,2.83408]
[1721614783604,2.4854,3529.0,3528.8,0.06068204]
[1721614783805,2.4854,3529.0,3528.5,2.83405]
[1721614784105,2.4854,3529.0,3528.4,2.83413]
[1721614784534,5.31907,3529.0,3528.5,0.06069594]
[1721614784707,5.31907,3529.0,3528.3,2.83421]
[1721614785046,5.31907,3529.0,3528.4,2.89482968]
[1721614785206,2.4854,3529.0,3528.4,2.89482968]
[1721614787845,2.4854,3529.0,3528.4,0.06068968]
[1721614788070,2.83384,3528.8,3528.4,0.06068968]
[1721614788371,0.04070323,3528.8,3527.8,2.83462]
[1721614788743,1.18463,3529.0,3527.9,0.06072997]
[1721614788744,2.83407,3528.5,3527.9,0.06072997]
[1721614788943,2.83407,3528.5,3527.9,2.89525997]
[1721614789576,2.83407,3528.5,3527.9,0.06072997]
[1721614790051,5.2323,3528.7,3527.9,2.89525997]
[1721614790239,2.3984,3528.7,3528.1,2.83432]
[1721614790448,3.4234588,3528.9,3528.2,2.83429]
[1721614790651,2.83376,3528.9,3528.2,2.89500606]
[1721614791349,2.83382,3528.8,3528.2,2.89500606]
[1721614791876,2.83382,3528.8,3528.2,0.06071606]
[1721614792373,1.7110897,3528.9,3528.2,2.89501606]
[1721614793088,10.5589988,3529.0,3528.3,2.83422]
[1721614793379,0.5896988,3529.2,3528.4,2.83414]
[1721614793587,12.65982,3529.3,3528.4,2.83414]
[1721614793588,10.4160988,3529.3,3528.4,2.83414]
[1721614793753,10.4160988,3529.3,3528.5,2.83406]
[1721614793754,0.5896988,3529.2,3528.5,2.83406]
[1721614794081,2.83351,3529.2,3528.5,2.89482282]
[1721614794251,2.83351,3529.2,3528.5,3.17822882]
[1721614794441,3.4232088,3529.2,3528.5,3.17822882]
[1721614794640,2.83351,3529.2,3528.5,3.17822882]
[1721614794988,10.4160988,3529.3,3528.5,0.34416882]
[1721614795281,13.2495188,3529.3,3528.6,0.31782988]
[1721614795676,13.2495188,3529.3,3528.7,0.06074265]
[1721614796042,13.2495188,3529.3,3528.5,2.83405]
[1721614796273,13.2495188,3529.3,3528.8,0.06073802]
[1721614796581,13.2495188,3529.3,3528.6,2.83398]
[1721614796940,13.2495188,3529.3,3528.7,0.06074265]
[1721614798469,2.9360988,3529.3,3528.7,0.06074265]
[1721614799540,0.5896988,3529.2,3528.7,0.06074265]
[1721614799737,0.5896988,3529.2,3528.6,2.83398]
[1721614799961,0.5896988,3529.2,3528.7,0.06074265]
[1721614800172,0.5896988,3529.2,3528.7,2.89461265]
[1721614800352,0.5896988,3529.2,3528.8,2.83381]
[1721614800555,2.9360988,3529.3,3528.8,2.89454802]
[1721614800759,2.9360988,3529.3,3528.8,2.83381]
[1721614802353,0.5896988,3529.2,3528.8,2.83381]
[1721614802534,0.5896988,3529.2,3528.8,0.566778]
[1721614802737,0.5896988,3529.6,3529.5,2.83326]
[1721614802959,0.5896988,3529.9,3529.5,1.10370558]
[1721614803160,0.5896988,3530.0,3529.7,2.83308]
[1721614803546,8.0696988,3530.1,3529.8,0.06058281]
[1721614803742,8.0696988,3530.1,3529.8,2.89359281]
[1721614803999,0.5896988,3530.3,3530.0,2.83286]
[1721614804282,0.5896988,3530.4,3530.1,2.83277]
[1721614804482,3.1417482,3530.6,3530.1,2.83277]
[1721614804483,0.5896988,3530.5,3530.1,2.89328294]
[1721614804778,0.5896988,3530.5,3530.1,2.83277]
[1721614805355,0.5896988,3530.5,3530.2,0.06050831]
[1721614805586,0.5896988,3530.6,3530.4,2.83253]
[1721614805786,7.48,3530.7,3530.4,2.83253]
[1721614805961,7.48,3530.7,3530.5,0.06049442]
[1721614806286,7.48,3530.7,3530.6,2.83237]
[1721614806500,0.5896988,3531.1,3530.6,2.83237]
[1721614806699,0.5896988,3531.3,3530.9,2.83211]
[1721614806998,7.48,3531.5,3531.0,0.06016897]
[1721614806999,8.0696988,3531.5,3531.0,0.06016897]
[1721614807151,8.0696988,3531.5,3531.2,2.83188]
[1721614807152,7.48,3531.5,3531.2,2.83188]
[1721614807771,7.48,3531.5,3531.3,0.06005097]
[1721614809990,7.48,3531.5,3530.8,2.83221]
[1721614810159,8.511158,3531.5,3530.9,2.83211]
[1721614810348,1.031158,3531.5,3530.9,2.89212045]
[1721614810554,1.031158,3531.5,3530.9,2.83211]
[1721614810752,2.83182,3531.3,3530.4,2.83247]
[1721614810997,2.83182,3531.3,3530.1,2.3369]
[1721614810998,2.83197,3531.1,3530.5,0.06002897]
[1721614811176,0.32797055,3531.0,3530.5,0.06002897]
[1721614811487,0.28726732,3531.0,3530.1,5.16967]
[1721614811655,0.28726732,3531.0,3530.6,0.06002434]
[1721614811991,3.11933732,3531.0,3530.3,2.83259]
[1721614812570,3.11933732,3531.0,3530.4,0.0600336]
[1721614812770,1.10063696,3530.9,3530.4,0.0600336]
[1721614812977,1.05993373,3530.9,3530.3,2.83255]
[1721614813177,1.05993373,3530.9,3530.2,2.83267]
[1721614813178,10.31193,3531.2,3530.5,0.06002897]
[1721614813351,10.3119,3531.2,3530.4,0.0600336]
[1721614813556,10.3119,3531.2,3529.7,2.3815]
[1721614813557,2.87267323,3531.1,3529.7,2.3815]
[1721614813856,7.48,3531.2,3530.5,0.06002897]
[1721614813857,2.83209,3531.0,3530.5,0.06002897]
[1721614814089,2.83209,3531.0,3530.3,2.83262]
[1721614814305,1.314391,3531.0,3530.6,0.06002434]
[1721614814480,1.314391,3531.0,3530.4,2.8325]
[1721614815383,1.314391,3531.0,3530.5,2.83245]
[1721614817361,1.314391,3531.0,3530.3,2.83257]
[1721614817766,1.314391,3531.0,3530.4,0.06009884]
[1721614817965,1.314391,3531.0,3530.4,2.89259884]
[1721614818271,1.314391,3531.0,3530.4,2.8325]
[1721614818665,1.314391,3531.0,3530.5,2.89251421]
[1721614818865,7.48,3531.2,3530.6,2.83237]
[1721614819184,7.48,3531.2,3530.7,0.06008495]
[1721614819708,10.31192,3531.2,3530.7,0.06008495]
[1721614819883,7.48,3531.2,3530.7,0.06008495]
[1721614820064,7.48,3531.2,3530.4,2.83251]
[1721614820266,1.031174,3531.1,3530.8,0.05993582]
[1721614820514,1.031174,3531.1,3530.4,2.83251]
[1721614820698,3.863164,3531.1,3530.4,2.83251]
[1721614820902,3.863164,3531.1,3530.5,0.05994971]
[1721614821505,1.031174,3531.1,3530.5,0.05994971]
[1721614821671,2.83216,3530.9,3530.5,0.05994971]
[1721614821873,2.83216,3530.9,3530.2,2.83266]
[1721614822104,1.1343064,3531.0,3530.0,2.83285]
[1721614822270,1.1343064,3531.0,3530.3,0.05994965]
[1721614822474,1.42782164,3530.9,3530.3,2.83261]
[1721614823011,1.42782164,3530.9,3530.4,0.05994502]
[1721614823412,4.25996164,3530.9,3530.1,2.83273]
[1721614823569,2.2923,3530.8,3530.1,2.83273]
[1721614823767,2.2923,3530.8,3530.2,0.05995428]
[1721614824173,2.2923,3530.8,3530.2,2.89258428]
[1721614824791,2.2923,3530.8,3530.2,0.05995428]
[1721614825303,2.2923,3530.8,3530.3,2.8326]
[1721614825678,2.2923,3530.8,3530.4,0.05997143]
[1721614830339,2.2923,3530.8,3530.4,2.89250143]
[1721614830483,2.4445,3531.1,3530.7,2.83229]
[1721614830790,7.48,3531.2,3530.8,0.05997155]
[1721614831222,2.2531,3531.0,3530.1,2.83273]
[1721614831435,2.83227,3530.8,3530.1,2.83273]
[1721614831736,3.62808332,3530.8,3530.1,2.83273]
[1721614832300,0.79581332,3530.8,3530.2,2.83268]
[1721614832847,0.79581332,3530.8,3530.3,2.83261]
[1721614832996,2.2531,3531.0,3530.3,2.83261]
[1721614833402,5.08516,3531.0,3530.3,2.83261]
[1721614833624,2.2531,3531.0,3530.4,2.83252]
[1721614834426,2.2531,3531.0,3530.6,2.83232]
[1721614834806,2.2531,3531.0,3530.4,2.83253]
[1721614835122,2.2531,3531.0,3530.0,2.83278]
[1721614835330,2.2531,3531.0,3530.3,2.83256]
[1721614835563,2.2531,3531.0,3530.6,2.83237]
[1721614835837,7.48,3531.2,3530.7,2.83228]
[1721614836438,7.48,3531.2,3530.9,2.83212]
[1721614836660,15.24162,3531.6,3530.9,2.83212]
[1721614836661,5.24172,3531.6,3530.9,2.83212]
[1721614836948,7.349025,3531.6,3530.9,2.83212]
[1721614837302,7.349025,3531.6,3530.7,2.83229]
[1721614837303,2.83166,3531.5,3530.7,2.83222]
[1721614837805,2.83174,3531.4,3530.7,2.83228]
[1721614838150,2.83174,3531.4,3530.8,0.09571161]
[1721614838331,4.5978045,3531.4,3530.8,0.09571161]
[1721614838518,4.5978045,3531.4,3530.7,2.83228]
[1721614839729,2.46870323,3531.3,3530.5,2.83245]
[1721614840050,5.25982,3531.3,3530.6,2.92806047]
[1721614840248,6.24963677,3531.3,3530.6,2.92806047]
[1721614841759,2.83191,3531.2,3530.6,0.09571047]
[1721614841908,0.04070323,3531.2,3530.6,0.09571047]
[1721614842109,0.04070323,3531.2,3530.2,2.83263]
[1721614842110,2.428,3530.7,3530.2,2.83263]
[1721614843225,2.428,3530.7,3530.3,2.83261]
[1721614843733,2.428,3530.7,3530.0,2.83286]
[1721614843734,2.428,3530.7,3530.1,2.83273]
[1721614845364,2.428,3530.7,3530.2,2.83269]
[1721614846352,2.428,3530.7,3530.2,5.66538]
[1721614846564,2.428,3530.7,3530.2,2.83269]
[1721614848694,3.0176988,3530.7,3530.2,2.83269]
[1721614848845,2.428,3530.7,3530.2,2.83269]
[1721614849044,2.428,3530.7,3530.3,2.83261]
[1721614849273,2.428,3530.7,3530.1,2.83273]
[1721614849480,3.0176988,3530.7,3530.1,2.83273]
[1721614849842,3.0176988,3530.7,3530.1,2.83277]
[1721614850175,3.0176988,3530.7,3530.2,3.220037]
[1721614850176,2.428,3530.7,3530.2,3.220037]
[1721614850377,3.0176988,3530.7,3530.2,3.220037]
[1721614850556,3.0176988,3530.7,3530.3,2.8326]
[1721614850751,2.428,3530.7,3530.3,2.8326]
[1721614851279,2.428,3530.7,3530.2,0.387377]
[1721614851441,3.0176988,3530.7,3530.2,3.220057]
[1721614852490,3.0176988,3530.7,3530.4,2.83248]
[1721614852491,0.5896988,3530.7,3530.4,2.83248]
[1721614852647,0.5896988,3530.8,3530.4,3.4377337]
[1721614853478,0.5896988,3530.8,3530.4,0.6052537]
[1721614853795,0.5896988,3530.8,3530.2,3.220057]
[1721614853991,0.5896988,3530.6,3530.2,3.220057]
[1721614854199,0.5896988,3530.7,3530.5,0.09571454]
[1721614854369,0.5896988,3530.7,3530.2,2.83268]
[1721614854552,0.5896988,3530.7,3530.3,0.09572582]
[1721614855055,0.5896988,3530.6,3530.3,0.09572582]
[1721614857061,0.5896988,3530.6,3530.4,2.83253]
[1721614857261,0.5896988,3530.6,3530.4,2.92825018]
[1721614858754,0.5896988,3530.6,3530.4,0.09572018]
[1721614859146,0.5896988,3530.6,3530.2,2.83265]
[1721614859389,0.8845482,3530.7,3530.5,0.09571454]
[1721614859580,0.8845482,3530.7,3530.3,0.09572582]
[1721614859795,0.59218069,3530.6,3530.3,0.09572582]
[1721614860368,0.59218069,3530.5,3530.3,0.09572582]
[1721614860570,0.59218069,3530.6,3530.3,0.09572582]
[1721614860754,0.59218069,3530.5,3530.3,0.09572582]
[1721614861280,0.59218069,3530.5,3530.3,2.92830582]
[1721614861590,0.59218069,3530.6,3530.4,2.83253]
[1721614861796,0.59218069,3530.6,3530.4,2.92825018]
[1721614866493,0.59218069,3530.6,3530.5,2.83245]
[1721614866705,8.96099579,3531.1,3530.8,2.83221]
[1721614866706,0.59218069,3530.9,3530.8,2.83221]
[1721614866857,0.59218069,3531.1,3530.8,3.73367733]
[1721614867058,0.59218069,3531.1,3531.0,2.83205]
[1721614867255,0.59218069,3531.2,3531.1,2.83197]
[1721614867454,0.59218069,3531.3,3531.1,2.83197]
[1721614867689,0.59218069,3531.2,3531.1,2.92446427]